Cogmind - Beta 14 @@@ ROGUE MODE // 2024.10.07 @ 11:53:58 Player: Angler Result: Destroyed by CD-Y8A(R) with Subdweller Machine Gun Performance ------------- Evolutions (0) 0 Regions Visited (3) 600 Robots Destroyed (36) 180 Value Destroyed (832) 832 Prototype IDs (3) 60 Alien Tech Used (0) 0 Bonus (35) 35 TOTAL SCORE: 1707 Bonus ------- Follower Combat Kills 35 Cogmind --------- Core Integrity 0/250 Matter 290/300 Energy 126/265 System Corruption 0% Temperature Cool (0) Movement Walking (190) Ox1 Location -10/Subcaves Parts ------- > --- POWER (1) -------- Improved Ion Engine > --- PROPULSION (2) --- Carbon-fiber Leg Myomer Leg > --- UTILITY (2) ------ High-capacity Storage Unit Subdweller Optics > --- WEAPON (2) ------- (None) > --- INVENTORY (20) --- Carbon-fiber Leg Armored Wheel Structural Scanner Visual Processing Unit Sensor Array Experimental Sensor Array Signal Interpreter Improved Terrain Scanner Improved Terrain Scanner Targeting Computer Core Shielding Core Shielding Propulsion Shielding Utility Shielding Hacking Suite Heavy Assault Rifle Heavy Assault Rifle Light Cannon Rocket Launcher Datajack Peak State ------------ > --- POWER ------------ Improved Ion Engine > --- PROPULSION ------- Carbon-fiber Leg Myomer Leg > --- UTILITY ---------- High-capacity Storage Unit Subdweller Optics > --- WEAPON ----------- (None) > --- INVENTORY -------- Carbon-fiber Leg Armored Wheel Structural Scanner Visual Processing Unit Sensor Array Experimental Sensor Array Signal Interpreter Improved Terrain Scanner Improved Terrain Scanner Targeting Computer Core Shielding Core Shielding Propulsion Shielding Utility Shielding Hacking Suite Heavy Assault Rifle Heavy Assault Rifle Light Cannon Rocket Launcher Datajack [Rating: 19] Favorites ----------- Power Improved Ion Engine Engine Improved Ion Engine Propulsion Armored Wheel Treads Light Treads Leg Carbon-fiber Leg Wheel Armored Wheel Utility Hardened Light Armor Plating Device Seismic Detector Storage High-capacity Storage Unit Protection Hardened Light Armor Plating Weapon Light Cannon Energy Gun Beamcaster Ballistic Gun Heavy Assault Rifle Ballistic Cannon Light Cannon Special Melee Weapon Datajack Build | -11 -10 -10 -10 ------- Run | Yrd Mat Min Sub Slots Evolved . | . . . . Power . | . . . . Propulsion . | . . . . Utility . | . . . . Weapon . | . . . . Parts Attached 34 | 8 11 7 8 Power 5 | 1 2 1 1 Engine 5 | 1 2 1 1 Core . | . . . . Reactor . | . . . . Propulsion 8 | 2 2 . 4 Treads 2 | 2 . . . Leg 4 | . . . 4 Wheel 2 | . 2 . . Hover . | . . . . Flight . | . . . . Utility 8 | 3 3 . 2 Device 3 | 2 . . 1 Storage 2 | 1 1 . . Processor . | . . . . Hackware . | . . . . Protection 3 | . 2 . 1 Artifact . | . . . . Weapon 13 | 2 4 6 1 Energy Gun 1 | . . . 1 Energy Cannon . | . . . . Ballistic Gun 4 | 2 2 . . Ballistic Cannon 7 | . 2 5 . Launcher . | . . . . Special Weapon . | . . . . Impact Weapon . | . . . . Slashing Weapon . | . . . . Piercing Weapon . | . . . . Special Melee Weapon 1 | . . 1 . Unidentified Prototypes . | . . . . Parts Lost 10 | . 1 2 7 Power 1 | . . . 1 Propulsion 2 | . 1 . 1 Utility 2 | . . . 2 Weapon 5 | . . 2 3 Highest Loss Streak 5 | . 1 1 5 To Critical Strikes . | . . . . Average Slot Usage (%) 95 | . 94 99 85 Engine 13 | . 13 14 12 Treads 9 | . 18 . . Wheel 15 | . 5 28 22 Storage 14 | . 14 14 14 Protection 13 | . 13 14 11 Ballistic Gun 9 | . 16 . . Ballistic Cannon 18 | . 11 27 21 Peak Build Rating 19 | 9 14 15 19 Average Rating 12 | 5 12 13 12 On Entrance 9 | . 8 14 14 Naked Turns . | . . . . Heaviest Build 58 | 14 58 58 58 Greatest Support 40 | 40 40 24 40 Greatest Overweight (x) 4 | 1 4 2 4 Average Overweight (x) 1 | . 1 2 2 Largest Inventory Capacity 20 | 8 20 20 20 Average Capacity 18 | 7 18 20 20 Most Carried 20 | 8 20 20 20 Average Carried 17 | 4 16 19 19 Final Capacity 20 | 8 20 20 20 Final Carried 20 | 8 20 20 20 Class Distribution -------------------- 100% | Mutant Dominant Class ---------------- Mutant | -10/Materials Mutant | -10/Mines Mutant | -10/Subcaves Resources | -11 -10 -10 -10 ----------- Run | Yrd Mat Min Sub Matter Collected 1352 | 303 619 375 55 Remotely . | . . . . Salvage Created 949 | 106 683 160 . Parts 74 | 10 52 12 . Haulers Intercepted 1 | . 1 . . Recyclers Shooed . | . . . . Parts Field Recycled . | . . . . Retrieved Matter . | . . . . Parts Self-Destructed 4 | . . . 4 Prevented . | . . . . Kills | -11 -10 -10 -10 ------- Run | Yrd Mat Min Sub Combat Hostiles Destroyed 23 | . 15 8 . Guns 7 | . 7 . . Cannons 16 | . 8 8 . Classes Destroyed 10 | 2 7 1 . Worker 2 | . 2 . . Builder 3 | . 3 . . Tunneler 2 | 2 . . . Hauler 1 | . 1 . . Recycler 1 | 1 . . . Operator 1 | . 1 . . Watcher 3 | . 3 . . Swarmer 6 | . 3 3 . Grunt 15 | . 12 3 . Sentry 2 | . . 2 . Best Kill Streak 4 | 2 4 3 . Combat Bots Only 3 | . 3 3 . Max Kills in Single Turn 2 | 1 2 1 . Gunslinging . | . . . . Exploded . | . . . . Melee . | . . . . Uniques/NPCs Destroyed . | . . . . Combat | -11 -10 -10 -10 -------- Run | Yrd Mat Min Sub Hostile Shots Fired 192 | . 58 70 64 Missed 65 | . 21 15 29 Damage Taken 2065 | . 580 698 787 Core 255 | . 62 63 130 Absorbed by Shields . | . . . . Regen/Repaired (Parts) 150 | . 150 . . Core Remaining (%) 100 | 100 . . . Volleys Fired 113 | 9 71 33 . Largest 2 | 2 2 2 . Hottest 70 | 40 70 70 . Shots Fired 223 | 18 142 63 . Gun 98 | 18 80 . . Cannon 125 | . 62 63 . Launcher . | . . . . Special . | . . . . Kinetic 223 | 18 142 63 . Thermal . | . . . . Explosive . | . . . . Electromagnetic . | . . . . Robot Hit Streak 10 | 4 10 7 . Robot Miss Streak 6 | 1 6 6 . Penetration Max . | . . . . Secondary Targets 1 | . 1 . . Max Gunslinging Chain 1 | . 1 . . Shots Hit Robots 110 | 11 60 39 . Core Hits 45 | 5 28 12 . Critical Kills 1 | . 1 . . Critical Parts Destroyed 1 | . 1 . . Critical Strikes 6 | . 4 2 . Destroy 2 | . 2 . . Blast 4 | . 2 2 . Melee Attacks 5 | . . 5 . Impact . | . . . . Slashing . | . . . . Piercing . | . . . . Sneak Attacks 5 | . . 5 . Combat Hostiles . | . . . . Follow-up Attacks . | . . . . Damage Inflicted 1720 | 104 991 625 . Guns 778 | 104 674 . . Cannons 942 | . 317 625 . Explosions . | . . . . Melee . | . . . . Ramming . | . . . . Kinetic 1720 | 104 991 625 . Thermal . | . . . . Explosive . | . . . . Electromagnetic . | . . . . Impact . | . . . . Slashing . | . . . . Piercing . | . . . . Highest Corruption . | . . . . Average Corruption . | . . . . Corruption Purged . | . . . . Corruption Blocked . | . . . . Overload Shots . | . . . . Overflow Damage . | . . . . Projectiles . | . . . . Explosions . | . . . . Melee . | . . . . Knockbacks 9 | . 2 7 . Impact . | . . . . Kinetic 9 | . 2 7 . Secondary . | . . . . Self-Inflicted Damage . | . . . . Shots . | . . . . Rammed . | . . . . Targets Rammed . | . . . . Kicked . | . . . . Crushed . | . . . . Highest Temperature 433 | . 264 433 234 Average Temperature 89 | . 49 155 122 Received Heat Transfer 999 | . 207 315 477 Effects 2 | . . 2 . Shutdowns 1 | . . 1 . Damage (minor) 1 | . . 1 . Siege Activations . | . . . . Robots Corrupted . | . . . . Combat Hostiles . | . . . . Parts Fried . | . . . . Impact Corruptions . | . . . . Robots Melted . | . . . . Combat Hostiles . | . . . . Parts Melted . | . . . . Heat Transferred . | . . . . Parts Sabotaged . | . . . . Parts Stolen . | . . . . Parts Stripped . | . . . . Power Chain Reactions . | . . . . Alert | -11 -10 -10 -10 ------- Run | Yrd Mat Min Sub Peak Influence 172 | 15 172 147 . Initial 27 | . 9 27 . Average 60 | 4 67 56 . Maximum Alert Level . | . . . . Low Security (%) 100 | 100 100 100 . Level 1 . | . . . . Level 2 . | . . . . Level 3 . | . . . . Level 4 . | . . . . Level 5 . | . . . . High Security . | . . . . Max Security . | . . . . Squads Dispatched 5 | . 5 . . Investigation 5 | . 5 . . Extermination . | . . . . Reinforcement . | . . . . Assault . | . . . . Garrison . | . . . . Intercept . | . . . . Searches Triggered . | . . . . Construction Impeded . | . . . . Haulers Reinforced . | . . . . Active Scanning Responses . | . . . . Cargo Convoy Interrupts . | . . . . Stealth | -11 -10 -10 -10 --------- Run | Yrd Mat Min Sub Distress Signals 1 | . 1 . . Communications Jammed . | . . . . Distress Signals . | . . . . Times Spotted 42 | . 23 10 9 Peak Tracking Total 7 | . 5 3 7 Tactical Retreats 3 | . 1 2 . Traps | -11 -10 -10 -10 ------- Run | Yrd Mat Min Sub Traps Triggered 1 | . 1 . . Indirectly . | . . . . Trap Hack Attempts . | . . . . Triggered . | . . . . Disarmed . | . . . . Reprogrammed . | . . . . Reused . | . . . . Traps Extracted . | . . . . Installed . | . . . . Triggered . | . . . . Machines | -11 -10 -10 -10 ---------- Run | Yrd Mat Min Sub Machines Disabled 4 | . 3 1 . Max in Single Turn 1 | . 1 1 . Machines Repaired . | . . . . Machines Dismantled . | . . . . Machines Sabotaged . | . . . . Overloaded Fab Kills . | . . . . Hacking | -11 -10 -10 -10 --------- Run | Yrd Mat Min Sub Machines Accessed 9 | . 9 . . Terminals 8 | . 8 . . Fabricators . | . . . . Repair Stations 1 | . 1 . . Recycling Units . | . . . . Scanalyzers . | . . . . Garrison Access . | . . . . Total Hacks 40 | . 40 . . Successful 22 | . 22 . . Failed 17 | . 17 . . Catastrophic 1 | . 1 . . Database Lockouts 1 | . 1 . . Manual 27 | . 27 . . Terminals 32 | . 32 . . Fabricators . | . . . . Repair Stations 8 | . 8 . . Recycling Units . | . . . . Scanalyzers . | . . . . Garrison Access . | . . . . Terminal Hacks 11 | . 11 . . Record 1 | . 1 . . Robot Analysis 4 | . 4 . . Prototype ID Bank 2 | . 2 . . Alert Level 1 | . 1 . . Unreport Threat 1 | . 1 . . Dispatch Records 1 | . 1 . . Hauler Manifests 1 | . 1 . . Fabricator Hacks . | . . . . Repair Station Hacks 7 | . 7 . . Scan Component 4 | . 4 . . Repair 3 | . 3 . . Recycling Unit Hacks . | . . . . Scanalyzer . | . . . . Garrison Access Hacks . | . . . . Unauthorized Hacks 4 | . 4 . . Terminals 4 | . 4 . . Botnet 4 | . 4 . . Fabricators . | . . . . Repair Stations . | . . . . Recycling Units . | . . . . Scanalyzers . | . . . . Garrison Access . | . . . . Data Cores Recovered 1 | . 1 . . Used . | . . . . Hacking Detections 9 | . 9 . . Full Trace Events 5 | . 5 . . Feedback Events . | . . . . Feedback Blocked . | . . . . Robot Schematics Acquired . | . . . . Robots Built . | . . . . Authchips . | . . . . Time . | . . . . Total Robot Build Rating . | . . . . Part Schematics Acquired . | . . . . Parts Built . | . . . . Authchips . | . . . . Time . | . . . . Total Part Build Rating . | . . . . Parts Repaired 3 | . 3 . . Time 90 | . 90 . . Parts Recycled . | . . . . Recycled Matter . | . . . . Retrieved Matter . | . . . . Retrieved Components . | . . . . Parts Scanalyzed . | . . . . Part Schematics Acquired . | . . . . Parts Damaged . | . . . . Bothacking | -11 -10 -10 -10 ------------ Run | Yrd Mat Min Sub Used RIF Installer . | . . . . Robots Hacked 1 | . . 1 . Non-combat 1 | . . 1 . Combat . | . . . . Robot Hacks Applied 2 | . . 2 . parse_system 1 | . . 1 . no_distress 1 | . . 1 . Relay Couplers Released . | . . . . Fabnet Peak Effective % . | . . . . Robots Rewired . | . . . . Allies Hacked . | . . . . Hacks Repelled . | . . . . Allies | -11 -10 -10 -10 -------- Run | Yrd Mat Min Sub Total Allies 1 | . . 1 . Largest Group 1 | . . 1 . Highest-Rated Group 31 | . . 31 . Highest-Rated Ally 31 | . . 31 . Total Orders . | . . . . Ally Attacks 6 | . . 6 . Total Damage 106 | . . 106 . Kills 1 | . . 1 . Allies Corrupted . | . . . . Allies Melted . | . . . . Intel | -11 -10 -10 -10 ------- Run | Yrd Mat Min Sub Robot Analysis Total 4 | . 4 . . Derelict Logs Recovered 5 | . . 2 3 Drone Launches . | . . . . Drone Recoveries . | . . . . Exploration | -11 -10 -10 -10 ------------- Run | Yrd Mat Min Sub Turns Passed 3540 | 155 1840 1260 285 Spaces Moved 1782 | 72 693 819 198 Core 4 | 4 . . . Treads 554 | 68 486 . . Legs 8 | . . . 8 Wheels 1216 | . 207 819 190 Hover . | . . . . Flight . | . . . . Fastest Speed 50 | 50 120 120 120 Average Speed 156 | 154 209 120 127 Slowest Speed 320 | 160 320 120 260 Overloaded Moves . | . . . . Propulsion Burnouts . | . . . . Robots Hopped . | . . . . Cave-ins Triggered . | . . . . Exploration Rate (%) 52 | 5 89 101 15 Regions Visited 3 Branch Regions 2 Pre-discovered Areas 1 | . . . 1 Known Exits Taken 1 | . . 1 . Unknown Exits Taken 2 | 1 1 . . Scrap Searched 1 | . . 1 . Spaces Dug . | . . . . Terrain Destroyed . | . . . . Melee . | . . . . Projectile . | . . . . AOE . | . . . . Terrain Rammed . | . . . . Walls Destroyed . | . . . . Machines Disabled . | . . . . Actions | -11 -10 -10 -10 --------- Run | Yrd Mat Min Sub Total 2299 | 96 942 1033 228 Wait 307 | . 139 149 19 Move 1779 | 71 692 818 198 Hop . | . . . . Pick Up 39 | 8 18 11 2 Fast Attach 14 | 7 4 . 3 Attach 4 | . . 2 2 Detach 1 | . 1 . . Swap 16 | 1 7 5 3 Drop 21 | . 10 10 1 Fire 113 | 9 71 33 . Melee 5 | . . 5 . Ram . | . . . . Kick . | . . . . Crush . | . . . . Escape Stasis . | . . . . Rewire . | . . . . Trap . | . . . . Miscellaneous . | . . . . Route ------- -11/Scrapyard -10/Materials (discovered 5 exits: [*Mat x2] / [*Min x2] / *Sub) -10/Mines (discovered 3 exits: [*Mat x2] / *Sub) -10/Subcaves History --------- Turn | Location | Event 30 | -11/Scrapyard | Discovered new exit (range 15) 156 | -11/Scrapyard | Entered Materials 311 | -10/Materials | Build established: Mutant 349 | -10/Materials | Discovered new exit (range 16) 652 | -10/Materials | Discovered new exit (range 15) 804 | -10/Materials | Discovered new exit (range 12) 1122 | -10/Materials | Discovered new exit (range 6) 1668 | -10/Materials | Discovered new exit (range 8) 1717 | -10/Materials | Repaired Imp. Ion Engine 1750 | -10/Materials | Repaired Hrd. Light Armor Plating 1778 | -10/Materials | Repaired Signal Interpreter 1984 | -10/Materials | Central database locked down 1996 | -10/Materials | Entered Mines 2101 | -10/Mines | Learned Materials emergency access door positions 2189 | -10/Mines | Found a damaged Exp. Sensor Array with a note attached 2191 | -10/Mines | Found Prototype Device 2244 | -10/Mines | Discovered new exit (range 5) 2327 | -10/Mines | Received a Rocket Launcher from a helpful Derelict 2514 | -10/Mines | Identified exit to Subcaves 2735 | -10/Mines | Discovered new exit (range 16) 2772 | -10/Mines | Received a Mining Laser from a helpful Derelict 3256 | -10/Mines | Entered Subcaves 3265 | -10/Subcaves | Learned Materials emergency access door positions 3307 | -10/Subcaves | Ambushed by swarm of Subdwellers 3378 | -10/Subcaves | Lost 4 allies 3400 | -10/Subcaves | Learned location of Mines (-9) 3422 | -10/Subcaves | Core integrity fell below 50% 3478 | -10/Subcaves | Core integrity fell below 20% 3513 | -10/Subcaves | Lost 5 parts (1p1n1u2w) 3541 | -10/Subcaves | Destroyed by CD-Y8A(R) with Subdweller Machine Gun Last Messages --------------- 03347_ KS-94F(g) destroyed. 03387_ Hrd. Light Armor Plating destroyed. 03400_ Acquired derelict log, extracted data. World map updated: -9/Mines. 03455_ Arm. Wheel destroyed. 03471_ Lgt. Cannon destroyed. 03480_ OO-FZ2(R) destroyed. 03481_ Lgt. Armor Plating destroyed. 03482_ Imp. Ion Engine destroyed. 03509_ Subatomizers dissect the Myomer Leg. 03514_ Acquired Beamcaster. 03516_ Acquired Carbon-fiber Leg. 03516_ Beamcaster destroyed. 03516_ Critical hit (Meltdown: +270). 03524_ Subatomizers dissect the Myomer Leg. 03530_ Acquired Myomer Leg. 03532_ Acquired Carbon-fiber Leg. 03533_ Acquired 55 matter. 03536_ Subatomizers dissect the Sub. Monowheel. 03540_ Acquired Sub. Optics. Map ----- +----------------------------------------------------+ | ??????????????????????????????????????????####?# | | ?????????????????????????????????????????????### | | ?????????????????????????????????????????????# | | ?????????????????????????????????????????????## | | ??????????????????????????????????????????????#### | | ?????????????????????????????????????????????????? | | ?????????????????????????????????????????????###?? | | ?????????????????????????????????????????????# ##? | | ?????????????????????????????????????????????# ## | | ?????????????????????????????????????????????# | | ?????????????????????????????????????????????# | | ?????????????????????????????????????????????# | | ?????????????????????????????????????????????# | | ????????????????????????????????????????????## | | ????????????????????????????????????????????# | | ????????????????????????????????????????????# ## | | ????????????????????????????????????????????# ## | | ???????????????????????????????????????????## | | ?????????????????????????????????????####?## | | ???????????????????????####?????????## ### | | ??????????????????????## #?????##### | | ??????????????????????# ?????# | | ??????????????????????# ?????## | | ?????????????????#???## #####"## | | ???????????????### ## !##; !RR | | ???????????????# " *@=!%! !RR! | | ??????????????# ""# #[=% %%%!%## | | ?????????????# " ## ![%###%=### ## | | ???????????????"""" !!#?####?###### ## | | ???????????????""" %#???????????# ###### | | ????????????????##### ""#??????????######????# | | ????????????????????## ###;"#????????????????????? | | ????????????????????#;#??####????????????????????? | | ????????????????????##???????????????????????????? | | ?????????????????????????????????????????????????? | | ?????????????????????????????????????????????????? | | ?????????????????????????????????????????????????? | | ?????????????????????????????????????????????????? | | ?????????????????????????????????????????????????? | | ?????????????????????????????????????????????????? | | ?????????????????????????????????????????????????? | | ?????????????????????????????????????????????????? | | ?????????????????????????????????????????????????? | | ?????????????????????????????????????????????????? | | ?????????????????????????????????????????????????? | | ?????????????????????????????????????????????????? | | ?????????????????????????????????????????????????? | | | | | | | +----------------------------------------------------+ Best States ------------- Heat Dissipation 25 Energy Generation 12 Energy Capacity 265 Matter Stores 300 Matter Capacity 300 Sight Range 16 Terrain Scan Range 16 Terrain Scan Density 10 Armor Coverage 150 Evasion (%) 40 Recoil Reduction 2 Item Schematics ----------------- None Robot Schematics ------------------ None Fabricated ------------ Nothing Alien Tech Used ----------------- None Achievements -------------- Part-time Mechanic Shopping List root@ Challenges ------------ None Game ------ Seed InsulationPropulsionRipteeth Manual? 0 Play Time 01:32:28 Cumulative 5.3 hours Start 2024.10.07 @ 02:00:06 End 2024.10.07 @ 11:53:58 Sessions 3 Manual Loads 0 Difficulty Rogue Special Mode None Game No. 4 Rogue 4 Adventurer 0 Explorer 0 Win Type - Total 0 Types 0/0/0/0/0/0/0/0/0 Lore% 6 Gallery% 3 Achievement% 7 Wizard Run 0 Options --------- Layout 2 ASCII 0 Keyboard 0 Movement Numpad Keybinds 0 Fullscreen 1 Font 32/SmallcapsGlow Map View 50x44 Zoom Use 60% Tactical HUD 1 Map Filters NONE Filters NONE Steam X RUN: 305f4ff6-ef48-4c52-860e-ea68dc87e141